[Event "Early-Titled-Tuesday-Blitz-January-16-2024"]
[Site "Chess.com"]
[Date "2024.01.16"]
[Round "10"]
[White "Kotlyar_K"]
[Black "AlexandraSamaganova"]
[Result "0-1"]
[WhiteElo "2503"]
[BlackElo "2309"]
[TimeControl "180+1"]
[EndTime "9:58:17 PST"]
[Termination "AlexandraSamaganova won by resignation"]

1. e4 {[%clk 0:03:00.9]} 1... c5 {[%clk 0:02:59.1]} 2. Nf3 {[%clk 0:03:01]} 2...
e6 {[%clk 0:02:58.5]} 3. d3 {[%clk 0:02:59.6]} 3... Nc6 {[%clk 0:02:52.2]} 4.
Nc3 {[%clk 0:02:56.7]} 4... g6 {[%clk 0:02:52.2]} 5. g3 {[%clk 0:02:56.6]} 5...
Bg7 {[%clk 0:02:52.5]} 6. Bg2 {[%clk 0:02:56.7]} 6... Nge7 {[%clk 0:02:52.9]} 7.
O-O {[%clk 0:02:57.3]} 7... O-O {[%clk 0:02:52.7]} 8. Nd2 {[%clk 0:02:54.2]}
8... d5 {[%clk 0:02:52]} 9. f4 {[%clk 0:02:54.3]} 9... dxe4 {[%clk 0:02:41.5]}
10. dxe4 {[%clk 0:02:54.7]} 10... e5 {[%clk 0:02:04.8]} 11. Ne2 {[%clk
0:02:35.4]} 11... Bg4 {[%clk 0:01:55.9]} 12. c3 {[%clk 0:02:31.8]} 12... Qd7
{[%clk 0:01:53.7]} 13. Qe1 {[%clk 0:02:26.4]} 13... Rad8 {[%clk 0:01:47.8]} 14.
Nf3 {[%clk 0:02:26.2]} 14... Qd3 {[%clk 0:01:29.2]} 15. h3 {[%clk 0:02:14.7]}
15... Be6 {[%clk 0:01:20.8]} 16. Ng5 {[%clk 0:02:08.1]} 16... Bc4 {[%clk
0:01:17.4]} 17. Rf2 {[%clk 0:02:08]} 17... h6 {[%clk 0:01:16]} 18. Nf3 {[%clk
0:01:57]} 18... Kh7 {[%clk 0:01:08.2]} 19. b3 {[%clk 0:01:52.3]} 19... Be6
{[%clk 0:00:59.6]} 20. Ba3 {[%clk 0:01:48.9]} 20... b6 {[%clk 0:00:58]} 21. fxe5
{[%clk 0:01:42.5]} 21... Nxe5 {[%clk 0:00:56.7]} 22. Nf4 {[%clk 0:01:41.2]}
22... Qd7 {[%clk 0:00:43.8]} 23. Nxe5 {[%clk 0:01:28.4]} 23... Bxe5 {[%clk
0:00:43.4]} 24. Nxe6 {[%clk 0:01:27.3]} 24... Qxe6 {[%clk 0:00:43.4]} 25. Rf3
{[%clk 0:01:22.3]} 25... Nc6 {[%clk 0:00:33.5]} 26. Qe2 {[%clk 0:01:09.6]} 26...
Bg7 {[%clk 0:00:32.7]} 27. Raf1 {[%clk 0:01:06.5]} 27... Ne5 {[%clk 0:00:32.5]}
28. Re3 {[%clk 0:00:56.1]} 28... Rfe8 {[%clk 0:00:31.6]} 29. Bb2 {[%clk
0:00:55.2]} 29... c4 {[%clk 0:00:29.8]} 30. Rd1 {[%clk 0:00:41.5]} 30... cxb3
{[%clk 0:00:25.1]} 31. axb3 {[%clk 0:00:41.2]} 31... Qxb3 {[%clk 0:00:25]} 32.
Rxd8 {[%clk 0:00:40]} 32... Rxd8 {[%clk 0:00:25.1]} 33. Bf1 {[%clk 0:00:36.3]}
33... a5 {[%clk 0:00:20.1]} 34. c4 {[%clk 0:00:29.5]} 34... Qd1 {[%clk
0:00:19.9]} 35. Qxd1 {[%clk 0:00:15.7]} 35... Rxd1 {[%clk 0:00:20.8]} 36. Kg2
{[%clk 0:00:14.1]} 36... Nxc4 {[%clk 0:00:13.1]} 37. Bxc4 {[%clk 0:00:15]} 37...
Bxb2 {[%clk 0:00:13.2]} 38. Rb3 {[%clk 0:00:15.7]} 38... Bd4 {[%clk 0:00:12.7]}
39. Rxb6 {[%clk 0:00:15.5]} 39... Bxb6 {[%clk 0:00:12.3]} 40. Bxf7 {[%clk
0:00:14.5]} 40... Kg7 {[%clk 0:00:12.3]} 41. Bd5 {[%clk 0:00:14.6]} 41... a4
{[%clk 0:00:12.1]} 42. Kf3 {[%clk 0:00:14.5]} 42... a3 {[%clk 0:00:12.5]} 43.
Kf4 {[%clk 0:00:15]} 43... Rxd5 {[%clk 0:00:12.3]} 44. exd5 {[%clk 0:00:15.2]}
44... a2 {[%clk 0:00:12.8]} 45. d6 {[%clk 0:00:16]} 45... a1=Q {[%clk
0:00:13.2]} 46. d7 {[%clk 0:00:16.9]} 46... Qf6+ {[%clk 0:00:13.4]} 47. Ke4
{[%clk 0:00:17.5]} 47... Bd8 {[%clk 0:00:13.7]} 48. Kd5 {[%clk 0:00:17.6]} 48...
Qe7 {[%clk 0:00:13.5]} 49. Kc6 {[%clk 0:00:18.5]} 49... Qe6+ {[%clk 0:00:13.9]}
0-1

[Event "Early-Titled-Tuesday-Blitz-January-16-2024"]
[Site "Chess.com"]
[Date "2024.01.16"]
[Round "10"]
[White "mbchess97"]
[Black "Payyappat"]
[Result "0-1"]
[WhiteElo "2325"]
[BlackElo "2447"]
[TimeControl "180+1"]
[EndTime "9:58:18 PST"]
[Termination "Payyappat won by checkmate"]

1. c4 {[%clk 0:03:00.9]} 1... c5 {[%clk 0:01:56]} 2. g3 {[%clk 0:02:59.8]} 2...
Nf6 {[%clk 0:01:54.4]} 3. Bg2 {[%clk 0:03:00]} 3... Nc6 {[%clk 0:01:54.5]} 4.
Nf3 {[%clk 0:02:56.5]} 4... g6 {[%clk 0:01:54]} 5. Nc3 {[%clk 0:02:55.1]} 5...
Bg7 {[%clk 0:01:54.3]} 6. d4 {[%clk 0:02:55.4]} 6... O-O {[%clk 0:01:55.2]} 7.
d5 {[%clk 0:02:52]} 7... Nb8 {[%clk 0:01:53.1]} 8. O-O {[%clk 0:02:50.2]} 8...
d6 {[%clk 0:01:52.3]} 9. e4 {[%clk 0:02:38.9]} 9... Nbd7 {[%clk 0:01:47.7]} 10.
Re1 {[%clk 0:02:36.2]} 10... e6 {[%clk 0:01:46.8]} 11. dxe6 {[%clk 0:02:34]}
11... Nb6 {[%clk 0:01:43.6]} 12. exf7+ {[%clk 0:02:31.1]} 12... Rxf7 {[%clk
0:01:44.5]} 13. e5 {[%clk 0:02:25.3]} 13... Ng4 {[%clk 0:01:37.5]} 14. Qxd6
{[%clk 0:02:09.5]} 14... Qxd6 {[%clk 0:01:35.1]} 15. exd6 {[%clk 0:02:08.5]}
15... Bd7 {[%clk 0:01:33.6]} 16. h3 {[%clk 0:01:57.7]} 16... Bc6 {[%clk
0:01:14.3]} 17. Ng5 {[%clk 0:01:44.4]} 17... Rxf2 {[%clk 0:00:52.8]} 18. Bxc6
{[%clk 0:01:42.9]} 18... Bd4 {[%clk 0:00:51.6]} 19. Be3 {[%clk 0:01:26.1]} 19...
Nxe3 {[%clk 0:00:44.3]} 20. Kxf2 {[%clk 0:01:26.1]} 20... Nc2+ {[%clk
0:00:43.6]} 21. Kg2 {[%clk 0:01:22.7]} 21... bxc6 {[%clk 0:00:42.7]} 22. Ne6
{[%clk 0:01:06.3]} 22... Kf7 {[%clk 0:00:14.1]} 23. d7 {[%clk 0:01:00.6]} 23...
Nxd7 {[%clk 0:00:12.3]} 24. Ng5+ {[%clk 0:00:56.6]} 24... Kg8 {[%clk 0:00:11.9]}
25. Rad1 {[%clk 0:00:48.9]} 25... Nxe1+ {[%clk 0:00:11.6]} 26. Rxe1 {[%clk
0:00:49.1]} 26... Nb6 {[%clk 0:00:11.4]} 27. Re7 {[%clk 0:00:42.2]} 27... Bf6
{[%clk 0:00:10.9]} 28. Re6 {[%clk 0:00:32.8]} 28... Bxg5 {[%clk 0:00:10.1]} 29.
Rxc6 {[%clk 0:00:33.1]} 29... Bd2 {[%clk 0:00:09.5]} 30. Ne4 {[%clk 0:00:32.4]}
30... Be3 {[%clk 0:00:08.6]} 31. b3 {[%clk 0:00:31.9]} 31... Bd4 {[%clk
0:00:08.7]} 32. Rc7 {[%clk 0:00:27]} 32... Re8 {[%clk 0:00:08.9]} 33. Nxc5
{[%clk 0:00:19.7]} 33... Bxc5 {[%clk 0:00:08.4]} 34. Rxc5 {[%clk 0:00:19.6]}
34... Re2+ {[%clk 0:00:09.3]} 35. Kf3 {[%clk 0:00:19.3]} 35... Rxa2 {[%clk
0:00:10.2]} 36. Rc7 {[%clk 0:00:19.1]} 36... Ra3 {[%clk 0:00:10.1]} 37. Kf4
{[%clk 0:00:16.5]} 37... Rxb3 {[%clk 0:00:10.6]} 38. Rxa7 {[%clk 0:00:16.6]}
38... Nxc4 {[%clk 0:00:10.2]} 39. h4 {[%clk 0:00:15.8]} 39... Nd2 {[%clk
0:00:10.2]} 40. g4 {[%clk 0:00:15.2]} 40... Rf3+ {[%clk 0:00:09.8]} 41. Kg5
{[%clk 0:00:15.3]} 41... Ne4+ {[%clk 0:00:09.3]} 42. Kh6 {[%clk 0:00:14.4]}
42... Nf2 {[%clk 0:00:08.2]} 43. Ra8+ {[%clk 0:00:13.5]} 43... Rf8 {[%clk
0:00:07.7]} 44. Rxf8+ {[%clk 0:00:11]} 44... Kxf8 {[%clk 0:00:08.6]} 45. Kxh7
{[%clk 0:00:11.3]} 45... Kf7 {[%clk 0:00:08.9]} 46. h5 {[%clk 0:00:09.2]} 46...
g5 {[%clk 0:00:08.9]} 47. Kh6 {[%clk 0:00:08.6]} 47... Kf6 {[%clk 0:00:08.9]}
48. Kh7 {[%clk 0:00:08.8]} 48... Nxg4 {[%clk 0:00:09.2]} 49. h6 {[%clk
0:00:09.1]} 49... Kf7 {[%clk 0:00:09.3]} 50. Kh8 {[%clk 0:00:08.7]} 50... Ne5
{[%clk 0:00:09.3]} 51. h7 {[%clk 0:00:09.1]} 51... Ng6# {[%clk 0:00:09.4]} 0-1

[Event "Early-Titled-Tuesday-Blitz-January-16-2024"]
[Site "Chess.com"]
[Date "2024.01.16"]
[Round "10"]
[White "Rodalquilar"]
[Black "Leebit02"]
[Result "0-1"]
[WhiteElo "2749"]
[BlackElo "2577"]
[TimeControl "180+1"]
[EndTime "9:58:22 PST"]
[Termination "Leebit02 won on time"]

1. d4 {[%clk 0:03:00.9]} 1... d5 {[%clk 0:02:58.6]} 2. Nf3 {[%clk 0:03:01.3]}
2... Nf6 {[%clk 0:02:58.3]} 3. Bf4 {[%clk 0:03:01.7]} 3... e6 {[%clk 0:02:53.4]}
4. e3 {[%clk 0:03:02]} 4... c5 {[%clk 0:02:53.8]} 5. c3 {[%clk 0:03:01.8]} 5...
Be7 {[%clk 0:02:53.6]} 6. Nbd2 {[%clk 0:03:00.6]} 6... O-O {[%clk 0:02:53.6]} 7.
Bd3 {[%clk 0:03:00]} 7... Nh5 {[%clk 0:02:52.4]} 8. Bxb8 {[%clk 0:02:39.2]} 8...
Rxb8 {[%clk 0:02:52]} 9. Ne5 {[%clk 0:02:39.6]} 9... g6 {[%clk 0:02:34.9]} 10.
g4 {[%clk 0:02:33.2]} 10... Ng7 {[%clk 0:02:29.9]} 11. h4 {[%clk 0:02:33.3]}
11... f6 {[%clk 0:02:27.1]} 12. Nef3 {[%clk 0:01:25.4]} 12... e5 {[%clk
0:02:27.1]} 13. dxe5 {[%clk 0:01:25.8]} 13... Bxg4 {[%clk 0:02:24.9]} 14. Qc2
{[%clk 0:01:26.2]} 14... fxe5 {[%clk 0:01:56.7]} 15. Nxe5 {[%clk 0:01:23.9]}
15... Bf5 {[%clk 0:01:55.8]} 16. e4 {[%clk 0:01:20.8]} 16... dxe4 {[%clk
0:01:44.7]} 17. Nxe4 {[%clk 0:01:11.5]} 17... Kh8 {[%clk 0:01:38]} 18. O-O-O
{[%clk 0:00:58]} 18... Qc7 {[%clk 0:01:35.6]} 19. f4 {[%clk 0:00:58.4]} 19... b5
{[%clk 0:01:33.8]} 20. Ng5 {[%clk 0:00:54.5]} 20... Bf6 {[%clk 0:00:59.5]} 21.
Bxf5 {[%clk 0:00:46.5]} 21... gxf5 {[%clk 0:00:58.6]} 22. Rd7 {[%clk 0:00:45]}
22... Qb6 {[%clk 0:00:51.3]} 23. Nef7+ {[%clk 0:00:39.2]} 23... Kg8 {[%clk
0:00:44.9]} 24. Nh6+ {[%clk 0:00:39.7]} 24... Kh8 {[%clk 0:00:45.5]} 25. Qxf5
{[%clk 0:00:40.1]} 25... Bxg5 {[%clk 0:00:39.7]} 26. Qxg5 {[%clk 0:00:33.9]}
26... Qg6 {[%clk 0:00:35.8]} 27. Rg1 {[%clk 0:00:25.7]} 27... Rf6 {[%clk
0:00:32.1]} 28. h5 {[%clk 0:00:19.2]} 28... Qxh6 {[%clk 0:00:29.9]} 29. Rxg7
{[%clk 0:00:15.4]} 29... Qxg5 {[%clk 0:00:27.4]} 30. R1xg5 {[%clk 0:00:11.2]}
30... Rxf4 {[%clk 0:00:27.2]} 31. Rxa7 {[%clk 0:00:11.5]} 31... c4 {[%clk
0:00:26.1]} 32. Rgg7 {[%clk 0:00:10.3]} 32... Rf1+ {[%clk 0:00:25.1]} 33. Kd2
{[%clk 0:00:10.2]} 33... Rf2+ {[%clk 0:00:25.7]} 34. Ke3 {[%clk 0:00:10.8]}
34... Rxb2 {[%clk 0:00:21.7]} 35. Rxh7+ {[%clk 0:00:11.3]} 35... Kg8 {[%clk
0:00:22.3]} 36. Rag7+ {[%clk 0:00:11.8]} 36... Kf8 {[%clk 0:00:22.9]} 37. h6
{[%clk 0:00:12.5]} 37... Re8+ {[%clk 0:00:22.6]} 38. Kd4 {[%clk 0:00:12.8]}
38... Rd2+ {[%clk 0:00:22.3]} 39. Kc5 {[%clk 0:00:13.4]} 39... Re5+ {[%clk
0:00:22.8]} 40. Kb6 {[%clk 0:00:12.6]} 40... Re6+ {[%clk 0:00:20.1]} 41. Kc7
{[%clk 0:00:09.9]} 41... Rxh6 {[%clk 0:00:13.5]} 42. Rf7+ {[%clk 0:00:04.5]}
42... Kg8 {[%clk 0:00:12.1]} 43. Rhg7+ {[%clk 0:00:04]} 43... Kh8 {[%clk
0:00:12.7]} 44. Rg1 {[%clk 0:00:01.9]} 44... Rxa2 {[%clk 0:00:09.5]} 45. Kb7
{[%clk 0:00:02.5]} 45... Rh3 {[%clk 0:00:07.5]} 46. Re1 {[%clk 0:00:01.6]} 46...
Rg2 {[%clk 0:00:06.5]} 0-1

[Event "Early-Titled-Tuesday-Blitz-January-16-2024"]
[Site "Chess.com"]
[Date "2024.01.16"]
[Round "10"]
[White "Korchmar_Vasiliy"]
[Black "Statham_01"]
[Result "0-1"]
[WhiteElo "2734"]
[BlackElo "2564"]
[TimeControl "180+1"]
[EndTime "9:58:22 PST"]
[Termination "Statham_01 won on time"]

1. Nf3 {[%clk 0:03:00.9]} 1... d5 {[%clk 0:02:57.4]} 2. g3 {[%clk 0:03:01.2]}
2... Nc6 {[%clk 0:02:58]} 3. Bg2 {[%clk 0:02:58.8]} 3... e5 {[%clk 0:02:57.7]}
4. O-O {[%clk 0:02:59.1]} 4... f5 {[%clk 0:02:56.8]} 5. c4 {[%clk 0:02:54.2]}
5... d4 {[%clk 0:02:49.8]} 6. d3 {[%clk 0:02:52.9]} 6... Nf6 {[%clk 0:02:49.3]}
7. b4 {[%clk 0:02:52.1]} 7... e4 {[%clk 0:02:36.8]} 8. Ng5 {[%clk 0:02:44.3]}
8... h6 {[%clk 0:02:31.9]} 9. Nh3 {[%clk 0:02:44.6]} 9... Bxb4 {[%clk
0:02:26.6]} 10. Nd2 {[%clk 0:02:30.6]} 10... O-O {[%clk 0:02:11.7]} 11. Nf4
{[%clk 0:02:30.6]} 11... g5 {[%clk 0:01:46]} 12. Nd5 {[%clk 0:02:31]} 12... Bxd2
{[%clk 0:01:34.5]} 13. Nxf6+ {[%clk 0:02:27.2]} 13... Qxf6 {[%clk 0:01:34.7]}
14. Bxd2 {[%clk 0:02:28.1]} 14... Qe7 {[%clk 0:01:18.9]} 15. Qb1 {[%clk
0:02:22]} 15... Ne5 {[%clk 0:01:11.2]} 16. dxe4 {[%clk 0:01:38.7]} 16... f4
{[%clk 0:01:09.9]} 17. gxf4 {[%clk 0:00:49.1]} 17... gxf4 {[%clk 0:01:10.8]} 18.
Qc1 {[%clk 0:00:50]} 18... Qh4 {[%clk 0:01:02.9]} 19. Kh1 {[%clk 0:00:48.3]}
19... c5 {[%clk 0:00:42.3]} 20. Rg1 {[%clk 0:00:34.3]} 20... Kh7 {[%clk
0:00:42.1]} 21. Qa3 {[%clk 0:00:24.9]} 21... Ng4 {[%clk 0:00:38.2]} 22. h3
{[%clk 0:00:24.7]} 22... Nxf2+ {[%clk 0:00:19.3]} 23. Kh2 {[%clk 0:00:24.7]}
23... Ng4+ {[%clk 0:00:19.6]} 24. Kh1 {[%clk 0:00:24.7]} 24... Ne3 {[%clk
0:00:20.3]} 25. Bxe3 {[%clk 0:00:19.4]} 25... fxe3 {[%clk 0:00:05.8]} 26. Qxc5
{[%clk 0:00:13]} 26... Bxh3 {[%clk 0:00:06.1]} 27. Qc7+ {[%clk 0:00:13.2]} 27...
Bd7+ {[%clk 0:00:06.2]} 28. Qh2 {[%clk 0:00:13.4]} 28... Qxh2+ {[%clk
0:00:06.7]} 29. Kxh2 {[%clk 0:00:14.3]} 29... Rf2 {[%clk 0:00:07.4]} 30. Raf1
{[%clk 0:00:07.7]} 30... Raf8 {[%clk 0:00:05.6]} 31. Kg3 {[%clk 0:00:07.6]}
31... Rg8+ {[%clk 0:00:05.3]} 32. Kh2 {[%clk 0:00:06]} 32... Be6 {[%clk
0:00:04.2]} 33. Rxf2 {[%clk 0:00:05.5]} 33... exf2 {[%clk 0:00:05.1]} 34. Rf1
{[%clk 0:00:05.1]} 34... Rf8 {[%clk 0:00:05.8]} 35. Kg3 {[%clk 0:00:05.7]} 35...
Bxc4 {[%clk 0:00:04.9]} 36. a3 {[%clk 0:00:03.7]} 36... h5 {[%clk 0:00:03.6]}
37. e5 {[%clk 0:00:01]} 37... d3 {[%clk 0:00:03.5]} 38. exd3 {[%clk 0:00:01]}
38... Bxd3 {[%clk 0:00:04.4]} 39. Rxf2 {[%clk 0:00:00.9]} 39... h4+ {[%clk
0:00:05.1]} 0-1

[Event "Early-Titled-Tuesday-Blitz-January-16-2024"]
[Site "Chess.com"]
[Date "2024.01.16"]
[Round "10"]
[White "Pastore1978"]
[Black "Kotofeyca"]
[Result "1-0"]
[WhiteElo "2297"]
[BlackElo "2404"]
[TimeControl "180+1"]
[EndTime "9:58:22 PST"]
[Termination "Pastore1978 won by checkmate"]

1. e4 {[%clk 0:02:54.8]} 1... c5 {[%clk 0:02:59.6]} 2. Nc3 {[%clk 0:02:51.7]}
2... d6 {[%clk 0:02:59.9]} 3. f4 {[%clk 0:02:51.3]} 3... g6 {[%clk 0:02:59.1]}
4. Nf3 {[%clk 0:02:51.3]} 4... Bg7 {[%clk 0:02:59.3]} 5. Bc4 {[%clk 0:02:44.7]}
5... Nc6 {[%clk 0:02:58.3]} 6. O-O {[%clk 0:02:43.7]} 6... Nf6 {[%clk
0:02:57.2]} 7. d3 {[%clk 0:02:42.7]} 7... Bg4 {[%clk 0:02:56.8]} 8. Qe1 {[%clk
0:02:37.8]} 8... Bxf3 {[%clk 0:02:52.9]} 9. Rxf3 {[%clk 0:02:38.7]} 9... Nd4
{[%clk 0:02:53.2]} 10. Rf2 {[%clk 0:02:38.9]} 10... Ng4 {[%clk 0:02:30.3]} 11.
Rd2 {[%clk 0:02:37]} 11... Ne3 {[%clk 0:02:14.5]} 12. Qxe3 {[%clk 0:02:31.8]}
12... Nxc2 {[%clk 0:02:14.4]} 13. Rxc2 {[%clk 0:02:22.5]} 13... Bd4 {[%clk
0:02:14]} 14. Bb5+ {[%clk 0:02:18.7]} 14... Kf8 {[%clk 0:02:12]} 15. Rf2 {[%clk
0:01:57.2]} 15... Bxe3 {[%clk 0:02:08.6]} 16. Bxe3 {[%clk 0:01:58.1]} 16... Qb6
{[%clk 0:01:50.6]} 17. f5 {[%clk 0:01:55]} 17... Kg7 {[%clk 0:01:48.4]} 18. f6+
{[%clk 0:01:45.8]} 18... exf6 {[%clk 0:01:44.6]} 19. Rxf6 {[%clk 0:01:37]} 19...
Rhf8 {[%clk 0:01:12.1]} 20. Raf1 {[%clk 0:01:36.3]} 20... a6 {[%clk 0:01:08.3]}
21. Bc4 {[%clk 0:01:33.2]} 21... Qxb2 {[%clk 0:01:08]} 22. Rxf7+ {[%clk
0:01:23.8]} 22... Rxf7 {[%clk 0:01:08.9]} 23. Rxf7+ {[%clk 0:01:24.1]} 23... Kh8
{[%clk 0:01:09.3]} 24. Nd5 {[%clk 0:01:18]} 24... Qe2 {[%clk 0:00:38.5]} 25. h3
{[%clk 0:01:06]} 25... Rg8 {[%clk 0:00:24.6]} 26. Kh2 {[%clk 0:00:56.8]} 26...
Qh5 {[%clk 0:00:11.4]} 27. Bf4 {[%clk 0:00:35.3]} 27... Qh4 {[%clk 0:00:10.4]}
28. Bxd6 {[%clk 0:00:31.4]} 28... Qg5 {[%clk 0:00:08.2]} 29. Nf6 {[%clk
0:00:26.8]} 29... Qh4 {[%clk 0:00:07]} 30. Rxh7+ {[%clk 0:00:23.6]} 30... Qxh7
{[%clk 0:00:07.9]} 31. Nxh7 {[%clk 0:00:23.5]} 31... Kxh7 {[%clk 0:00:08.8]} 32.
Bxg8+ {[%clk 0:00:23.1]} 32... Kxg8 {[%clk 0:00:09.7]} 33. Bxc5 {[%clk
0:00:23.3]} 33... Kf7 {[%clk 0:00:10.2]} 34. d4 {[%clk 0:00:22.4]} 34... Ke6
{[%clk 0:00:11.1]} 35. Bb6 {[%clk 0:00:21.8]} 35... Kd7 {[%clk 0:00:12]} 36. a4
{[%clk 0:00:21.4]} 36... Kc6 {[%clk 0:00:12.9]} 37. a5 {[%clk 0:00:21.8]} 37...
Kb5 {[%clk 0:00:13.1]} 38. Kg3 {[%clk 0:00:21.7]} 38... Kc4 {[%clk 0:00:14]} 39.
Kg4 {[%clk 0:00:20.1]} 39... Kd3 {[%clk 0:00:13.9]} 40. e5 {[%clk 0:00:20.4]}
40... Ke4 {[%clk 0:00:14.8]} 41. e6 {[%clk 0:00:21]} 41... Kd5 {[%clk
0:00:15.7]} 42. e7 {[%clk 0:00:21.1]} 42... g5 {[%clk 0:00:16.6]} 43. e8=Q
{[%clk 0:00:19.7]} 43... Kc4 {[%clk 0:00:16.6]} 44. Qd8 {[%clk 0:00:19.5]} 44...
Kd3 {[%clk 0:00:17.5]} 45. Qxg5 {[%clk 0:00:18.1]} 45... Ke4 {[%clk 0:00:18.4]}
46. Qf4+ {[%clk 0:00:17.7]} 46... Kd3 {[%clk 0:00:19.3]} 47. Qf3+ {[%clk
0:00:15.5]} 47... Kc4 {[%clk 0:00:20.2]} 48. Qe2+ {[%clk 0:00:11.8]} 48... Kd5
{[%clk 0:00:21.1]} 49. Qe5+ {[%clk 0:00:10.9]} 49... Kc4 {[%clk 0:00:22]} 50.
Qc5+ {[%clk 0:00:11.5]} 50... Kd3 {[%clk 0:00:21.8]} 51. d5 {[%clk 0:00:11]}
51... Ke4 {[%clk 0:00:22.7]} 52. d6 {[%clk 0:00:10.5]} 52... Kd3 {[%clk
0:00:22.9]} 53. d7 {[%clk 0:00:10.9]} 53... Ke4 {[%clk 0:00:23.8]} 54. h4 {[%clk
0:00:10.2]} 54... Kd3 {[%clk 0:00:23.9]} 55. d8=Q+ {[%clk 0:00:10.2]} 55... Ke4
{[%clk 0:00:24.8]} 56. Qce7# {[%clk 0:00:10.4]} 1-0

[Event "Early-Titled-Tuesday-Blitz-January-16-2024"]
[Site "Chess.com"]
[Date "2024.01.16"]
[Round "10"]
[White "LyonBeast"]
[Black "Hikaru"]
[Result "1/2-1/2"]
[WhiteElo "3166"]
[BlackElo "3227"]
[TimeControl "180+1"]
[EndTime "9:58:25 PST"]
[Termination "Game drawn by agreement"]

1. e4 {[%clk 0:03:00.9]} 1... e5 {[%clk 0:02:59.2]} 2. Nf3 {[%clk 0:03:01.4]}
2... Nc6 {[%clk 0:02:59.5]} 3. Bb5 {[%clk 0:03:02.1]} 3... Nf6 {[%clk 0:03:00]}
4. O-O {[%clk 0:03:01.7]} 4... Nxe4 {[%clk 0:03:00.5]} 5. d4 {[%clk 0:03:02.1]}
5... Nd6 {[%clk 0:03:00.9]} 6. Bxc6 {[%clk 0:03:02.8]} 6... dxc6 {[%clk
0:03:01.8]} 7. dxe5 {[%clk 0:03:03.5]} 7... Nf5 {[%clk 0:03:02.5]} 8. Qxd8+
{[%clk 0:03:03.9]} 8... Kxd8 {[%clk 0:03:03.4]} 9. Nc3 {[%clk 0:03:04.4]} 9...
Bd7 {[%clk 0:03:01.9]} 10. Bf4 {[%clk 0:03:04.2]} 10... h6 {[%clk 0:02:59.2]}
11. Rad1 {[%clk 0:03:02.4]} 11... Kc8 {[%clk 0:02:59.4]} 12. h3 {[%clk
0:02:57.6]} 12... b6 {[%clk 0:02:50.4]} 13. Bh2 {[%clk 0:02:39.7]} 13... g5
{[%clk 0:02:00.6]} 14. Ne4 {[%clk 0:02:39.8]} 14... c5 {[%clk 0:01:55.9]} 15.
Rfe1 {[%clk 0:02:31.6]} 15... Be6 {[%clk 0:01:53.7]} 16. a3 {[%clk 0:02:30.1]}
16... a5 {[%clk 0:01:50.6]} 17. Nf6 {[%clk 0:02:28.6]} 17... Ne7 {[%clk
0:01:43.7]} 18. h4 {[%clk 0:02:25]} 18... g4 {[%clk 0:01:41.5]} 19. Nd2 {[%clk
0:02:25.4]} 19... Bg7 {[%clk 0:01:42.1]} 20. Nh5 {[%clk 0:02:20.9]} 20... Rg8
{[%clk 0:01:41.1]} 21. Nxg7 {[%clk 0:02:09.8]} 21... Rxg7 {[%clk 0:01:41.4]} 22.
Ne4 {[%clk 0:02:09.7]} 22... Nf5 {[%clk 0:01:39.5]} 23. h5 {[%clk 0:02:08]}
23... Kb7 {[%clk 0:01:37]} 24. Nf6 {[%clk 0:02:07.6]} 24... g3 {[%clk
0:01:24.8]} 25. fxg3 {[%clk 0:02:07.6]} 25... Nxg3 {[%clk 0:01:25.7]} 26. Rd3
{[%clk 0:02:03.9]} 26... Nf5 {[%clk 0:01:26]} 27. Bf4 {[%clk 0:02:01.5]} 27...
Rh8 {[%clk 0:01:25.8]} 28. Kf2 {[%clk 0:01:57.7]} 28... Ne7 {[%clk 0:01:17.1]}
29. Rg3 {[%clk 0:01:50.6]} 29... Rxg3 {[%clk 0:01:14.1]} 30. Kxg3 {[%clk
0:01:51.5]} 30... Nd5 {[%clk 0:01:14.2]} 31. Bc1 {[%clk 0:01:33]} 31... Nxf6
{[%clk 0:01:09.4]} 32. exf6 {[%clk 0:01:33.9]} 32... Bd5 {[%clk 0:01:02.9]} 33.
Kf2 {[%clk 0:01:31.8]} 33... Be6 {[%clk 0:00:54.5]} 34. Re5 {[%clk 0:01:03.2]}
34... Kc6 {[%clk 0:00:53.7]} 35. Bf4 {[%clk 0:01:03]} 35... Kd7 {[%clk
0:00:50.5]} 36. Re3 {[%clk 0:01:00.1]} 36... Rg8 {[%clk 0:00:49.5]} 37. Rg3
{[%clk 0:00:58.3]} 37... Rg4 {[%clk 0:00:44.9]} 38. Bxh6 {[%clk 0:00:56.6]}
38... Rh4 {[%clk 0:00:45.3]} 39. Rg5 {[%clk 0:00:55.6]} 39... Rh1 {[%clk
0:00:39.9]} 40. Bg7 {[%clk 0:00:53.1]} 40... Ba2 {[%clk 0:00:39.3]} 41. Re5
{[%clk 0:00:50.3]} 41... Kd6 {[%clk 0:00:39.8]} 42. Rg5 {[%clk 0:00:37.5]} 42...
Bb1 {[%clk 0:00:40.2]} 43. c3 {[%clk 0:00:38]} 43... Rc1 {[%clk 0:00:40.4]} 44.
Rg3 {[%clk 0:00:23.7]} 44... Rc2+ {[%clk 0:00:39.2]} 45. Kg1 {[%clk 0:00:23.9]}
45... Re2 {[%clk 0:00:37.1]} 46. h6 {[%clk 0:00:20.8]} 46... Ke6 {[%clk
0:00:37]} 47. b4 {[%clk 0:00:19.7]} 47... cxb4 {[%clk 0:00:36.8]} 48. cxb4
{[%clk 0:00:19.7]} 48... axb4 {[%clk 0:00:37.6]} 49. axb4 {[%clk 0:00:20.1]}
49... c5 {[%clk 0:00:38]} 50. bxc5 {[%clk 0:00:18.8]} 50... bxc5 {[%clk
0:00:38.9]} 51. Bf8 {[%clk 0:00:16.1]} 51... Re1+ {[%clk 0:00:31.2]} 52. Kh2
{[%clk 0:00:15.7]} 52... c4 {[%clk 0:00:28.2]} 53. Bb4 {[%clk 0:00:15.6]} 53...
Re5 {[%clk 0:00:26.7]} 54. Rh3 {[%clk 0:00:11.8]} 54... Bh7 {[%clk 0:00:26.6]}
55. Bc3 {[%clk 0:00:12.3]} 55... Rd5 {[%clk 0:00:26.6]} 56. Re3+ {[%clk
0:00:11.4]} 56... Kf5 {[%clk 0:00:26.9]} 57. Rg3 {[%clk 0:00:09.6]} 57... Rd3
{[%clk 0:00:23.4]} 58. Rxd3 {[%clk 0:00:07.9]} 58... cxd3 {[%clk 0:00:24]} 59.
Kg3 {[%clk 0:00:08.5]} 59... Kg6 {[%clk 0:00:23.6]} 60. Bd2 {[%clk 0:00:07.9]}
60... Kxf6 {[%clk 0:00:23.8]} 61. Kf4 {[%clk 0:00:08.5]} 1/2-1/2